{"text_format":"1","workbook":"xlsx","n_sheets":2,"sheets":["Stacjonarne","Arkusz4"],"not_rendered":{"charts":0,"images":0,"macros":0,"external_links":0,"defined_names":1,"comments":0,"pivot_tables":0},"unopened":[],"bounds":{"document_bytes":16777216,"sheet_cells":100000,"rows_first":2000,"rows_last":500,"rows_between":2000,"halvings":0,"cell_chars":16384,"cell_head_chars":4096},"cells_cut":0,"cells_raw":0,"read":"whole","date_system":"1900"}

{"sheet":"Stacjonarne","index":0,"n_rows":48,"n_cols":28,"rows_kept":48,"cut":false,"hidden":false,"merged":[[1,18,1,27],[1,7,3,7],[37,23,37,26],[37,18,37,21],[37,13,37,16],[2,8,2,12],[2,13,2,17],[2,18,2,22],[2,23,2,27],[37,5,37,7],[37,8,37,11],[1,6,3,6],[1,5,3,5],[1,8,1,17],[1,4,3,4],[1,0,3,0],[1,1,3,1],[1,2,3,2],[1,3,3,3],[41,2,41,9],[46,2,46,9],[47,2,47,9],[46,10,46,18],[47,10,47,18],[42,2,42,9],[43,2,43,9],[44,2,44,9],[45,2,45,9],[41,10,41,18],[42,10,42,18],[43,10,43,18],[44,10,44,18],[45,10,45,18]]}
["kierunek: LOGISTYKA MGR  (stacjonarne) 2024/2025"]
["L.P.","PRZEDMIOT","ŁĄCZNA LICZBA GODZIN","PK","E/Z","W","Ć/K","P/L","ROK I",null,null,null,null,null,null,null,null,null,"ROK II"]
[null,null,null,null,null,null,null,null,"SEMESTR 1",null,null,null,null,"SEMESTR 2",null,null,null,null,"SEMESTR 3",null,null,null,null,"SEMESTR 4"]
[null,null,null,null,null,null,null,null,"W","Ć/K","P/L","R","PK","W","Ć/K","P/L","R","PK","W","Ć/K","P/L","R","PK","W","Ć/K","P/L","R","PK"]
["I","MODUŁ OGÓLNY",{"$f":"SUM(C6:C9)","v":180},{"$f":"SUM(D6:D9)","v":15},0,60,60,60,60,60,60,180,15,0,0,0,0,0,0,0,0,0,0,0,0,0,0,0]
[1,"Zarządzanie wiedzą w organizacji",30,2,"Z",null,30,null,null,30,null,30,2]
[2,"Metodyka i podstawy badań naukowych",60,5,"E",30,null,30,30,null,30,60,5]
[3,"Statystyka i ekonometria",45,4,"Z",15,null,30,15,null,30,45,4]
[4,"Prawo cywilne i gospodarcze",45,4,"Z",15,30,null,15,30,null,45,4]
["II.","MODUŁ PODSTAWOWY",{"$f":"SUM(C11:C25)","v":720},47,0,195,60,465,60,15,90,165,15,75,45,150,270,14,30,15,90,135,8,30,0,120,150,10]
[5,"Zarządzanie strategiczne",45,4,"E",15,null,30,15,null,30,45,4]
[6,"Zarządzanie logistyczne",45,4,"E",15,null,30,15,null,30,45,4]
[7,"Makroekonomia",30,3,"Z",15,null,15,15,15,null,30,3]
[8,"Pozyskiwanie i analiza danych logistycznych",45,4,"Z",15,null,30,15,null,30,45,4]
[9,"Globalizacja gospodarcza",30,2,"Z",15,null,15,null,null,null,null,null,15,null,15,30,2]
[10,"Nowoczesne strategie logistyczne",60,3,"E",15,15,30,null,null,null,null,null,15,15,30,60,3]
[11,"Współczesne rachunki kosztów w logistyce",60,3,"Z",15,null,45,null,null,null,null,null,15,null,45,60,3]
[12,"Globalne zarządzanie łańcuchami dostaw",60,3,"E",15,15,30,null,null,null,null,null,15,15,30,60,3]
[13,"Badania operacyjne i teoria optymalizacji",60,3,"E",15,15,30,null,null,null,null,null,15,15,30,60,3]
[14,"Etyka w biznesie",30,2,"Z",15,15,null,null,null,null,null,null,null,null,null,null,null,15,15,null,30,2]
[15,"Zarządzanie logistyką odwrotną",45,3,"E",15,null,30,null,null,null,null,null,null,null,null,null,null,15,null,30,45,3]
[16,"Zaawansowane systemy informatyczne w logistyce",60,3,"Z",null,null,60,null,null,null,null,null,null,null,null,null,null,null,null,60,60,3]
[17,"Systemy Business Intelligence w logistyce",45,3,"E",15,null,30,null,null,null,null,null,null,null,null,null,null,null,null,null,null,null,15,null,30,45,3]
[18,"Współczesne technologie automatyzacji obiektów logistycznych",45,3,"Z",15,null,30,null,null,null,null,null,null,null,null,null,null,null,null,null,null,null,15,null,30,45,3]
[19,"Systemy ERP w procesach logistycznych",60,4,"E",null,null,60,null,null,null,null,null,null,null,null,null,null,null,null,null,null,null,null,null,60,60,4]
["III.","MODUŁ WYBORU OGRANICZONEGO",{"$f":"SUM(C27:C29)","v":150},16,0,0,75,75,0,0,0,0,0,{"$f":"SUM(N27:N29)","v":0},{"$f":"SUM(O27:O29)","v":45},{"$f":"SUM(P27:P29)","v":15},{"$f":"SUM(Q27:Q29)","v":60},{"$f":"SUM(R27:R29)","v":4},0,30,30,60,4,0,0,30,30,8]
[20,"Język obcy",60,4,"Z",null,60,null,null,null,null,null,null,null,30,null,30,2,null,30,null,30,2]
[21,"Seminarium magisterskie",75,11,"Z",null,null,75,null,null,null,null,null,null,null,15,15,1,null,null,30,30,2,null,null,30,30,8]
[22,"Konwersacje w języku obcym",15,1,"Z",null,15,null,null,null,null,null,null,null,15,null,15,1]
["IV.","MODUŁ WYBORU POSZERZONYCH KOMPETENCJI ",{"$f":"SUM(C31:C36)","v":270},{"$f":"SUM(D31:D36)","v":24},0,0,90,180,0,0,0,0,0,0,0,0,0,0,0,45,90,135,12,0,45,90,135,12]
[23,"Przedmiot 1",45,4,"Z",null,15,30,null,null,null,null,null,null,null,null,null,null,null,15,30,45,4]
[24,"Przedmiot 2",45,4,"Z",null,15,30,null,null,null,null,null,null,null,null,null,null,null,15,30,45,4]
[25,"Przedmiot 3",45,4,"Z",null,15,30,null,null,null,null,null,null,null,null,null,null,null,15,30,45,4]
[26,"Przedmiot 4",45,4,"Z",null,15,30,null,null,null,null,null,null,null,null,null,null,null,null,null,null,null,null,15,30,45,4]
[27,"Przedmiot 5",45,4,"Z",null,15,30,null,null,null,null,null,null,null,null,null,null,null,null,null,null,null,null,15,30,45,4]
[28,"Przedmiot 6",45,4,"Z",null,15,30,null,null,null,null,null,null,null,null,null,null,null,null,null,null,null,null,15,30,45,4]
[null,"RAZEM DYDAKTYKA",{"$f":"SUM(C5,C10,C26,C30)","v":1320},{"$f":"SUM(D5,D10,D26,D30)","v":102},null,255,285,780,120,75,150,345,30,75,90,165,330,18,30,90,210,330,24,30,45,240,315,30]
["V.","PRAKTYKI ZAWODOWE (3 miesiące)",480,18,"Z",null,null,null,null,null,null,null,null,"2 miesiące",null,null,null,12,"1 miesiąc",null,null,null,6]
["VI.","SZKOLENIE BHP",4,0,"Z"]
[null,"RAZEM ",{"$f":"SUM(C5,C10,C26,C30,C38,C39)","v":1804},{"$f":"SUM(D5,D10,D26,D30,D38)","v":120},null,{"$f":"SUM(F5,F10,F26,F30,F38)","v":255},285,780,120,75,150,345,30,75,90,165,330,30,30,90,210,330,30,30,45,240,315,30]
[]
["IV.","MODUŁ WYBORU POSZERZONYCH KOMPETENCJI ","A",null,null,null,null,null,null,null,"B"]
[23,"Przedmiot 1","Ocena systemów logistycznych",null,null,null,null,null,null,null,"Systemy mobilne w komunikacji logistycznej"]
[24,"Przedmiot 2","Optymalizacja procesów transportowych",null,null,null,null,null,null,null,"Gospodarka przestrzenna w logistyce"]
[25,"Przedmiot 3","Zarządzanie zasobami informacyjnymi logistyki",null,null,null,null,null,null,null,"Zarządzanie logistyką zwrotną"]
[26,"Przedmiot 4","E-logistyka",null,null,null,null,null,null,null,"Zarządzanie logistyką miejską"]
[27,"Przedmiot 5","Benchmarking w logistyce",null,null,null,null,null,null,null,"Logistyka w sytuacjach kryzysowych"]
[28,"Przedmiot 6","Ryzyko w systemach logistycznych",null,null,null,null,null,null,null,"Logistyka społeczna i humanitarna"]

{"sheet":"Arkusz4","index":1,"n_rows":0,"n_cols":0,"rows_kept":0,"cut":false,"hidden":true,"merged":[]}